bitfinex/quotes_SOLUSD_20250306
["timestamp","ask_amount","ask_price","bid_price","bid_amount"]
[1741236396914,2.3455,149.21,149.18,0.033]
[1741236397545,20.0,149.17,149.15,0.17516157]
[1741236397914,20.0,149.17,149.15,0.033]
[1741236399118,0.6704,149.16,149.15,0.033]
[1741236401926,101.4704,149.16,149.15,0.033]
[1741236402130,20.6704,149.16,149.15,0.0001]
[1741236404543,20.0,149.12,149.09,0.033]
[1741236404738,20.0,149.11,149.09,0.033]
[1741236404921,20.0,149.11,149.07,0.14216157]
[1741236405248,2.3475,149.09,149.04,0.033]
[1741236406845,20.0,149.06,149.04,0.033]
[1741236407043,20.0,149.05,149.04,0.033]
[1741236407339,20.6709,149.05,149.04,0.033]
[1741236408537,20.0,149.05,149.04,0.033]
[1741236409043,20.6709,149.05,149.04,0.033]
[1741236409249,20.0,149.05,149.04,0.033]
[1741236409626,80.8,149.08,149.04,0.033]
[1741236409824,0.6708,149.07,149.04,0.033]
[1741236411540,0.6707,149.09,149.06,0.14216157]
[1741236411740,0.03,149.1,149.06,27.15921627]
[1741236412048,20.7007,149.1,149.06,0.14216157]
[1741236412618,20.7007,149.1,149.05,0.14216157]
[1741236412823,20.7007,149.1,149.06,312.0]
[1741236413635,20.0,149.08,149.04,0.033]
[1741236414438,20.0,149.06,149.04,0.033]
[1741236415070,0.6709,149.05,149.04,0.033]
[1741236415849,0.6707,149.08,149.04,27.0500547]
[1741236416054,80.8,149.09,149.04,27.0500547]
[1741236416055,80.8,149.09,149.05,27.15921627]
[1741236416259,0.7006,149.1,149.06,27.0170547]
[1741236416650,0.7006,149.1,149.06,312.0]
[1741236417051,20.7006,149.1,149.06,312.0]
[1741236417275,22.3773,149.1,149.06,312.0]
[1741236418187,22.3773,149.1,149.05,0.14216157]
[1741236418358,20.0,149.09,149.04,0.033]
[1741236418949,0.6707,149.08,149.04,0.033]
[1741236419153,0.6707,149.08,149.04,0.17516157]
[1741236419554,20.6707,149.08,149.04,0.17516157]
[1741236420060,20.6707,149.08,149.04,0.033]
[1741236420365,20.0,149.05,149.04,0.033]
[1741236422599,20.6709,149.05,149.04,0.033]
[1741236423698,20.0,149.04,149.03,0.033]
[1741236424766,20.6709,149.04,149.03,0.033]
[1741236425877,0.6709,149.04,149.03,0.033]
[1741236426986,0.6708,149.06,149.03,0.033]
[1741236427691,0.6707,149.08,149.05,0.14216157]
[1741236427872,20.0,149.06,149.05,0.14216157]
[1741236428081,20.0,149.04,149.03,0.033]
[1741236428570,2.3476,149.08,149.03,0.033]
[1741236428571,80.8,149.05,149.03,0.033]
[1741236428978,0.6709,149.04,149.03,0.033]
[1741236429172,20.0,149.02,149.0,0.033]
[1741236429764,20.0,149.02,149.0,0.17516157]
[1741236429988,0.6709,149.04,149.0,0.17516157]
[1741236430781,0.6709,149.04,149.0,312.17516157]
[1741236432682,20.0,149.01,149.0,0.033]
[1741236433171,20.671,149.01,149.0,0.033]
[1741236435593,20.671,149.01,149.0,312.033]
[1741236436590,0.671,149.03,149.01,0.14216157]
[1741236437270,20.0,149.02,149.01,0.14216157]
[1741236437775,20.0,149.02,149.0,0.033]
[1741236437975,22.3485,149.03,149.0,0.033]
[1741236439497,0.42648471,149.02,149.0,0.033]
[1741236439686,0.42648471,149.02,148.95,1.6571559]
[1741236439883,0.42648471,149.02,148.96,0.14216157]
[1741236440781,1.6777,149.01,148.96,0.14216157]
[1741236440976,0.671,149.02,148.97,27.13850188]
[1741236441180,0.671,149.02,148.98,0.14216157]
[1741236441997,2.3479,149.07,149.0,0.14216157]
[1741236442296,83.1479,149.07,149.0,27.28066345]
[1741236442704,20.0,149.04,149.0,27.28066345]
[1741236442877,20.6709,149.04,149.0,108.58066345]
[1741236443282,0.6708,149.07,149.02,39.94076345]
[1741236443617,80.8,149.08,149.05,27.13850188]
[1741236443912,0.03,149.09,149.07,0.14216157]
[1741236444087,20.03,149.09,149.07,0.14216157]
[1741236444281,20.7007,149.09,149.07,312.14216157]
[1741236444781,20.03,149.09,149.07,312.14216157]
[1741236444980,0.03,149.09,149.07,312.14216157]
[1741236445823,0.7007,149.09,149.07,312.14216157]
[1741236446588,2.3775,149.09,149.03,81.3]
[1741236446914,22.3775,149.09,149.04,0.14216157]
[1741236447412,20.0,149.08,149.03,0.14216157]
[1741236447818,0.7007,149.09,149.04,27.13850188]
[1741236448022,0.7007,149.09,149.03,18.79181043]
[1741236448023,0.7007,149.09,149.06,0.14216157]
[1741236448386,0.03,149.09,149.06,27.28066345]
[1741236448806,0.7007,149.09,149.06,18.79181043]
[1741236449286,0.7007,149.09,149.05,0.14216157]
[1741236449691,0.7007,149.09,149.06,312.0]
[1741236451104,0.7007,149.09,149.07,0.14216157]
[1741236451405,0.03,149.09,149.07,100.09181043]
[1741236452101,0.03,149.09,149.08,66.08271231]
[1741236452310,10.29795053,149.17,149.12,0.14216157]
[1741236452499,10.29795053,149.17,149.16,45.93031231]
[1741236452698,10.29795053,149.17,149.16,127.23031231]
[1741236453003,10.29795053,149.17,149.16,0.14216157]
[1741236453329,20.0,149.14,149.12,0.14216157]
[1741236453788,20.0,149.14,149.1,0.14216157]
[1741236454014,20.0,149.13,149.04,262.33024423]
[1741236454207,20.0,149.12,149.05,18.64964886]
[1741236454543,20.0,149.12,149.05,45.78815074]
[1741236454851,20.0,149.12,149.06,0.14216157]
[1741236455204,0.6706,149.11,149.06,312.14216157]
[1741236455415,0.6706,149.11,149.08,0.14216157]
[1741236456010,0.6706,149.11,149.07,0.14216157]
[1741236456415,0.7005,149.13,149.09,0.14216157]
[1741236456725,0.03,149.13,149.12,0.14216157]
[1741236457610,0.03,149.13,149.12,27.28066345]
[1741236459528,0.03,149.13,149.12,339.28066345]
[1741236460141,0.03,149.13,149.12,0.14216157]
[1741236461140,0.03,149.13,149.06,27.13850188]
[1741236461310,20.0,149.12,149.06,81.3]
[1741236462245,0.6706,149.11,149.07,0.14216157]
[1741236462610,0.6706,149.11,149.07,45.93031231]
[1741236462805,20.0,149.12,149.08,27.13850188]
[1741236463020,0.7005,149.13,149.11,0.14216157]
[1741236463724,0.03,149.13,149.11,0.14216157]
[1741236463936,0.7005,149.13,149.11,0.14216157]
[1741236464526,0.03,149.13,149.11,0.14216157]
[1741236464723,20.03,149.13,149.08,27.13850188]
[1741236464920,20.03,149.13,149.08,0.14216157]
[1741236466531,0.6706,149.12,149.08,339.28066345]
[1741236466726,20.03,149.13,149.1,0.14216157]
[1741236466936,0.03,149.13,149.12,0.14216157]
[1741236469255,0.03,149.13,149.12,27.28066345]
[1741236469822,0.03,149.13,149.12,0.14216157]
[1741236470023,0.03,149.13,149.12,312.14216157]
[1741236470825,0.03,149.13,149.12,339.28066345]
[1741236471433,0.03,149.13,149.12,52.63631231]
[1741236471956,0.03,149.13,149.12,147.08071231]
[1741236472691,0.03,149.13,149.12,282.00719702]
[1741236472839,0.03,149.13,149.12,288.48809702]
[1741236474525,0.03,149.13,149.12,593.78209702]
[1741236474852,0.03,149.13,149.12,593.35561231]
[1741236475630,0.03,149.13,149.12,393.44216157]
[1741236476952,0.03,149.13,149.12,81.3]
[1741236477151,0.03,149.13,149.12,81.44216157]
[1741236478451,0.03,149.13,149.12,0.14216157]
[1741236479958,0.03,149.13,149.09,393.3]
[1741236480253,0.03,149.13,149.1,0.14216157]
[1741236481467,0.03,149.13,149.12,0.14216157]
[1741236481630,0.03,149.13,149.12,81.44216157]
[1741236483467,0.03,149.13,149.12,81.3]
[1741236484461,0.03,149.13,149.12,81.44216157]
[1741236485543,0.03,149.13,149.12,108.58066345]
[1741236486265,0.03,149.13,149.12,127.23031231]
[1741236486432,0.03,149.13,149.12,287.88429702]
[1741236487640,0.03,149.13,149.12,599.88429702]
[1741236488935,0.03,149.13,149.12,603.88774232]
[1741236489253,0.6701,149.22,149.13,19.21829514]
[1741236489451,0.6701,149.23,149.21,0.14216157]
[1741236489647,0.6701,149.23,149.21,81.44216157]
[1741236492234,0.6701,149.23,149.21,54.684]
[1741236492440,0.6701,149.23,149.21,49.3608]
[1741236492641,20.0,149.2,149.14,55.8008]
[1741236492851,0.6702,149.19,149.14,55.8008]
[1741236493162,20.6702,149.19,149.15,0.14216157]
[1741236493661,0.6702,149.19,149.15,27.28066345]
[1741236494360,20.0,149.2,149.17,0.14216157]
[1741236494559,0.6701,149.23,149.17,49.50296157]
[1741236494959,20.0,149.22,149.17,49.50296157]
[1741236495462,20.0,149.21,149.13,0.14216157]
[1741236495661,100.8,149.21,149.12,373.7521]
[1741236495862,100.8,149.21,149.13,27.28066345]
[1741236496041,100.8,149.21,149.15,0.14216157]
[1741236496362,80.8,149.21,149.18,0.14216157]
[1741236496538,0.7,149.24,149.18,76.64146345]
[1741236496738,20.0,149.23,149.18,76.64146345]
[1741236497363,0.6701,149.22,149.18,76.64146345]
[1741236497844,2.3454,149.22,149.18,49.50296157]
[1741236501560,20.0,149.23,149.18,49.50296157]
[1741236503164,20.0,149.23,149.18,76.64146345]
[1741236503371,0.03,149.24,149.22,27.13850188]
[1741236503542,0.03,149.24,149.23,27.28066345]
[1741236504467,0.03,149.24,149.23,0.14216157]
[1741236505065,20.03,149.24,149.23,0.14216157]
[1741236505254,20.03,149.24,149.2,0.14216157]
[1741236506164,0.03,149.24,149.2,0.14216157]
[1741236506659,0.03,149.24,149.2,27.28066345]
[1741236506861,0.03,149.24,149.22,0.14216157]
[1741236507261,0.03,149.24,149.23,46.35679702]
[1741236507444,0.03,149.24,149.23,230.21759702]
[1741236507644,0.03,149.24,149.23,243.39249702]
[1741236507868,0.03,149.24,149.23,250.09349702]
[1741236509655,0.03,149.24,149.23,252.09349702]
[1741236509851,0.03,149.28,149.27,39.21829514]
[1741236510069,0.03,149.28,149.27,256.63759702]
[1741236511267,0.03,149.28,149.27,260.62292455]
[1741236511772,0.03,149.28,149.27,240.62292455]
[1741236512271,0.03,149.28,149.27,240.19643984]
[1741236512472,0.03,149.28,149.27,53.34612753]
[1741236512648,0.03,149.28,149.27,49.50296157]
[1741236513045,0.03,149.28,149.27,95.71759702]
[1741236513470,0.03,149.28,149.27,49.50296157]
[1741236514772,0.03,149.28,149.27,49.3608]
[1741236514971,0.03,149.28,149.27,49.50296157]
[1741236515672,0.03,149.28,149.23,62.5357]
[1741236515880,20.03,149.28,149.2,27.13850188]
[1741236516088,20.03,149.28,149.2,190.2808]
[1741236516261,20.0,149.27,149.2,55.7808]
[1741236516460,20.03,149.28,149.21,27.13850188]
[1741236516461,0.03,149.28,149.21,27.13850188]
[1741236516656,0.03,149.28,149.22,0.14216157]
[1741236517079,0.03,149.28,149.24,27.13850188]
[1741236517266,0.03,149.28,149.25,0.14216157]
[1741236517466,0.03,149.28,149.25,27.28066345]
[1741236517696,0.03,149.28,149.27,0.14216157]
[1741236517879,0.03,149.28,149.27,49.50296157]
[1741236518073,0.03,149.28,149.27,76.64146345]
[1741236519170,0.03,149.28,149.27,49.50296157]
[1741236519479,0.03,149.28,149.27,76.64146345]
[1741236519663,0.03,149.28,149.27,95.29111231]
[1741236519857,0.03,149.28,149.27,95.71759702]
[1741236520065,0.03,149.28,149.27,414.41679702]
[1741236521379,0.03,149.28,149.27,380.57909514]
[1741236521769,0.03,149.28,149.27,407.71759702]
[1741236522978,0.03,149.28,149.27,414.41679702]
[1741236523573,0.03,149.28,149.27,548.91679702]
[1741236523878,0.03,149.28,149.27,550.91679702]
[1741236524281,0.03,149.28,149.27,548.91679702]
[1741236525485,0.03,149.28,149.27,542.21759702]
[1741236525983,0.03,149.28,149.27,407.14895074]
[1741236526181,0.03,149.28,149.27,407.71759702]
[1741236526891,0.03,149.28,149.27,361.3608]
[1741236527305,0.03,149.28,149.27,361.50296157]
[1741236527485,0.03,149.28,149.27,49.50296157]
[1741236527680,0.03,149.28,149.27,49.3608]
[1741236527988,0.03,149.28,149.25,49.3608]
[1741236528189,0.03,149.28,149.26,18.79181043]
[1741236529270,0.03,149.28,149.26,45.93031231]
[1741236529586,0.03,149.28,149.27,45.93031231]
[1741236530471,0.03,149.28,149.27,357.93031231]
[1741236530686,0.03,149.28,149.27,364.62951231]
[1741236532680,0.03,149.28,149.27,337.49101043]
[1741236532982,0.03,149.28,149.27,364.62951231]
[1741236533384,0.03,149.28,149.27,52.62951231]
[1741236535273,0.03,149.28,149.27,101.99031231]
[1741236536379,0.03,149.28,149.27,413.99031231]
[1741236537110,0.03,149.28,149.27,414.41679702]
[1741236537797,0.03,149.28,149.27,548.91679702]
[1741236539792,0.03,149.28,149.27,184.00296157]
[1741236539990,0.03,149.28,149.27,49.3608]
[1741236540584,0.03,149.28,149.27,49.50296157]
[1741236540896,0.03,149.28,149.27,0.14216157]
[1741236541107,0.03,149.28,149.27,27.28066345]
[1741236541284,0.03,149.28,149.27,0.14216157]
[1741236541474,0.03,149.28,149.27,209.77829514]
[1741236541675,0.03,149.28,149.27,236.91679702]
[1741236542106,0.03,149.28,149.27,230.21759702]
[1741236542474,0.03,149.28,149.27,184.00296157]
[1741236542675,0.03,149.28,149.27,496.00296157]
[1741236543681,0.03,149.28,149.27,519.59752109]
[1741236544002,0.03,149.28,149.27,512.89832109]
[1741236544705,0.03,149.28,149.27,496.00296157]
[1741236546503,0.03,149.28,149.27,512.89832109]
[1741236546805,0.03,149.28,149.27,496.00296157]
[1741236547180,0.03,149.28,149.27,361.50296157]
[1741236547981,0.03,149.28,149.25,0.033]
[1741236548585,20.0,149.26,149.25,0.033]
[1741236551690,0.03,149.28,149.25,0.033]
[1741236552003,20.0,149.24,149.2,316.96328829]
[1741236552185,20.0,149.24,149.21,0.14216157]
[1741236552896,20.0,149.23,149.18,0.14216157]
[1741236553299,20.0,149.22,149.18,0.14216157]
[1741236554210,80.8,149.25,149.18,17.03752109]
[1741236555013,80.8,149.25,149.18,21.00546907]
[1741236555229,80.8,149.25,149.18,27.70866907]
[1741236555716,80.8,149.25,149.18,21.00546907]
[1741236555886,80.8,149.25,149.18,333.00546907]
[1741236556615,80.8,149.25,149.18,21.00546907]
[1741236557189,20.0,149.22,149.18,4.11010955]
[1741236557388,20.0,149.22,149.18,0.14216157]
[1741236557597,80.8,149.25,149.18,0.14216157]
[1741236557802,20.0,149.22,149.18,0.14216157]
[1741236558711,0.03,149.28,149.21,39.4640058]
[1741236558905,0.03,149.28,149.27,17.03752109]
[1741236559219,0.03,149.28,149.27,66.39832109]
[1741236559619,0.03,149.28,149.27,378.39832109]
[1741236560120,0.03,149.28,149.27,361.50296157]
[1741236561013,0.03,149.28,149.27,0.14216157]
[1741236561925,0.03,149.28,149.27,17.03752109]
[1741236562118,0.03,149.28,149.27,0.14216157]
[1741236562325,0.03,149.28,149.27,17.03752109]
[1741236562616,0.03,149.28,149.27,27.17200177]
[1741236563598,0.03,149.28,149.27,83.23200177]
[1741236564002,0.03,149.28,149.27,395.23200177]
[1741236565809,0.03,149.28,149.27,414.30813534]
[1741236566322,0.03,149.28,149.27,102.30813534]
[1741236566793,0.03,149.28,149.27,106.26343752]
[1741236567198,0.03,149.28,149.27,80.48810395]
[1741236567697,0.03,149.28,149.27,87.18730395]
[1741236568225,0.03,149.28,149.27,83.23200177]
[1741236568637,0.03,149.28,149.27,49.50296157]
[1741236568929,0.03,149.28,149.27,76.53280177]
[1741236569310,0.03,149.28,149.27,413.88165063]
[1741236569724,0.03,149.28,149.27,101.88165063]
[1741236570239,0.03,149.28,149.27,102.30813534]
[1741236571321,0.03,149.28,149.27,106.26399357]
[1741236571831,0.03,149.28,149.27,3.95585823]
[1741236572528,0.03,149.28,149.27,0.14216157]
[1741236572710,0.03,149.28,149.27,312.14216157]
[1741236574620,0.03,149.28,149.26,49.3608]
[1741236575024,0.03,149.28,149.27,0.14216157]
[1741236575217,0.03,149.28,149.22,76.3906402]
[1741236575416,0.03,149.28,149.23,0.14216157]
[1741236576032,0.03,149.28,149.25,0.17516157]
[1741236576724,0.03,149.28,149.25,0.033]
[1741236577326,0.03,149.28,149.25,0.17516157]
[1741236577635,0.03,149.28,149.25,312.17516157]
[1741236579009,0.03,149.28,149.25,0.033]
[1741236579204,20.0,149.25,149.19,76.3906402]
[1741236579616,20.0,149.25,149.19,49.3608]
[1741236579823,20.0,149.25,149.2,0.14216157]
[1741236580013,20.0,149.25,149.19,49.3608]
[1741236580402,20.0,149.25,149.2,0.14216157]
[1741236580604,20.0,149.25,149.22,0.14216157]
[1741236581313,20.0,149.25,149.2,0.14216157]
[1741236581621,20.0,149.25,149.2,27.17200177]
[1741236582012,20.0,149.25,149.2,339.17200177]
[1741236582525,20.0,149.25,149.2,329.05156352]
[1741236583333,0.03,149.28,149.22,0.14216157]
[1741236583633,0.03,149.28,149.25,0.14216157]
[1741236584834,0.03,149.28,149.26,0.14216157]
[1741236585435,0.03,149.28,149.25,0.14216157]
[1741236586537,0.03,149.28,149.25,312.14216157]
[1741236587935,0.03,149.28,149.25,312.17516157]
[1741236588312,0.03,149.28,149.27,17.05156352]
[1741236588928,0.03,149.28,149.27,0.14216157]
[1741236589242,0.03,149.28,149.27,66.41236352]
[1741236589424,0.03,149.28,149.27,85.06201238]
[1741236591440,0.03,149.28,149.27,397.06201238]
[1741236591940,0.03,149.28,149.27,361.50296157]
[1741236592238,0.03,149.28,149.25,0.033]
[1741236592626,0.03,149.28,149.25,0.17516157]
[1741236592818,0.03,149.28,149.25,17.08456352]
[1741236593234,0.03,149.28,149.25,16.94240195]
[1741236593544,0.03,149.28,149.26,0.14216157]
[1741236594038,0.03,149.28,149.27,17.05156352]
[1741236594632,0.03,149.28,149.27,85.06201238]
[1741236595044,0.03,149.28,149.27,397.06201238]
[1741236595719,0.03,149.28,149.27,403.76121238]
[1741236595918,0.03,149.28,149.27,407.69465417]
[1741236598320,0.03,149.28,149.27,408.12113888]
[1741236598623,0.03,149.28,149.27,493.26033888]
[1741236600129,0.03,149.28,149.27,574.56033888]
[1741236600339,0.03,149.28,149.27,587.61173888]
[1741236601227,0.03,149.28,149.27,580.91253888]
[1741236601443,0.03,149.28,149.27,587.61173888]
[1741236602039,0.03,149.28,149.27,580.91253888]
[1741236602250,0.03,149.28,149.27,580.48605417]
[1741236602440,0.03,149.28,149.27,414.14284374]
[1741236602636,0.03,149.28,149.27,397.23344179]
[1741236602943,0.03,149.28,149.27,433.36113888]
[1741236603143,0.03,149.28,149.27,440.06033888]
[1741236603350,0.03,149.28,149.27,574.56033888]
[1741236604854,0.03,149.28,149.27,567.86113888]
[1741236605438,0.03,149.28,149.27,574.56033888]
[1741236605638,0.03,149.28,149.27,567.86113888]
[1741236607254,0.03,149.28,149.27,574.56033888]
[1741236607439,0.03,149.28,149.27,567.86113888]
[1741236607956,0.03,149.28,149.27,397.37560336]
[1741236608252,0.03,149.28,149.27,439.63385417]
[1741236608457,0.03,149.28,149.27,432.93465417]
[1741236608855,0.03,149.28,149.27,439.63385417]
[1741236609330,0.03,149.28,149.27,432.93465417]
[1741236609649,0.03,149.28,149.27,397.37560336]
[1741236609839,0.03,149.28,149.27,85.23344179]
[1741236610235,0.03,149.28,149.27,85.37560336]
[1741236610733,0.03,149.28,149.27,4.07560336]
[1741236611974,0.03,149.28,149.27,0.14216157]
[1741236612640,20.03,149.28,149.27,0.14216157]
[1741236613549,20.0,149.27,149.25,0.033]
[1741236614058,20.0,149.26,149.25,0.033]
[1741236614434,20.0,149.26,149.18,215.833]
[1741236614773,0.03,149.28,149.18,0.033]
[1741236614774,20.0,149.2,149.18,0.033]
[1741236617234,20.0,149.19,149.18,0.033]
[1741236617974,20.42648471,149.19,149.18,0.033]
[1741236618146,0.42648471,149.19,149.18,0.0001]
[1741236618345,19.07613357,149.19,149.18,0.0001]
[1741236621899,6.3362,149.23,149.18,0.0001]
[1741236622061,20.0,149.2,149.18,0.0001]
[1741236623365,6.3362,149.23,149.18,0.0001]
[1741236623877,20.0,149.2,149.18,0.0001]
[1741236625378,20.0,149.2,149.18,312.0001]
[1741236626078,20.0,149.2,149.18,0.0001]
[1741236627478,20.0,149.19,149.18,0.0001]
[1741236628967,0.03,149.2,149.18,17.05166352]
[1741236629288,0.03,149.2,149.19,17.05156352]
[1741236630588,0.03,149.2,149.19,123.70401238]
[1741236633468,0.03,149.2,149.18,0.0001]
[1741236636397,20.42648471,149.19,149.18,0.0001]
[1741236636692,0.42648471,149.19,149.18,0.0001]
[1741236640281,0.03,149.2,149.18,0.0001]
[1741236640889,20.0,149.19,149.18,0.0001]
[1741236641594,0.03,149.2,149.18,0.0001]
[1741236643596,0.03,149.2,149.18,312.0001]
[1741236645197,20.03,149.2,149.18,312.0001]
[1741236645712,20.03,149.2,149.18,0.0001]
[1741236648603,0.03,149.2,149.18,0.0001]
[1741236649188,0.03,149.2,149.19,17.05156352]
[1741236649396,0.03,149.2,149.19,98.35156352]
[1741236649804,0.03,149.2,149.19,117.42769709]
[1741236650019,0.03,149.2,149.19,170.62769709]
[1741236651303,0.03,149.2,149.19,177.33049709]
[1741236651672,0.03,149.2,149.19,158.68084823]
[1741236652021,0.03,149.2,149.19,177.33049709]
[1741236652223,0.03,149.2,149.19,489.33049709]
[1741236652580,0.03,149.2,149.19,482.62769709]
[1741236653000,0.03,149.2,149.19,393.44216157]
[1741236653221,0.03,149.2,149.19,85.38472466]
[1741236654215,0.03,149.2,149.19,85.24256309]
[1741236654721,0.03,149.2,149.19,81.44216157]
[1741236655195,0.03,149.2,149.18,6.6264]
[1741236655397,0.03,149.2,149.18,0.0001]
[1741236655708,0.03,149.2,149.18,0.14226157]
[1741236656811,0.03,149.2,149.18,0.0001]
[1741236661017,0.03,149.2,149.18,0.14226157]
[1741236663090,0.03,149.2,149.18,0.0001]
[1741236663902,0.03,149.2,149.18,312.0001]
[1741236664311,0.03,149.2,149.18,0.0001]
[1741236665509,20.03,149.2,149.18,0.0001]
[1741236666412,0.03,149.2,149.18,0.14226157]
[1741236666614,0.03,149.2,149.18,81.44226157]
[1741236666802,0.03,149.2,149.18,98.35166352]
[1741236667126,0.03,149.2,149.19,17.05156352]
[1741236667324,0.03,149.2,149.19,329.05156352]
[1741236668611,0.03,149.2,149.19,342.15156352]
[1741236668806,0.03,149.2,149.19,576.60121238]
[1741236669141,0.03,149.2,149.19,278.23431238]
[1741236669632,0.03,149.2,149.19,278.66079709]
[1741236670532,0.03,149.2,149.19,282.6175357]
[1741236672107,0.03,149.2,149.19,594.6175357]
[1741236676117,20.03,149.28,149.2,19.21829514]
[1741236676315,0.03,149.28,149.26,17.05156352]
[1741236676513,0.03,149.28,149.27,17.05156352]
[1741236676932,0.03,149.28,149.27,251.92769709]
[1741236677310,0.03,149.28,149.27,232.85156352]
[1741236677627,0.03,149.28,149.27,215.94216157]
[1741236678133,0.03,149.28,149.25,81.3]
[1741236678329,0.03,149.28,149.23,232.70940195]
[1741236678545,0.03,149.28,149.27,17.05156352]
[1741236678713,0.03,149.28,149.27,251.92769709]
[1741236679324,0.03,149.28,149.27,563.92769709]
[1741236679714,0.03,149.28,149.27,563.50121238]
[1741236679917,0.03,149.28,149.27,393.44216157]
[1741236680120,0.03,149.28,149.27,410.35156352]
[1741236681037,0.03,149.28,149.27,393.44216157]
[1741236681537,0.03,149.28,149.27,429.42769709]
[1741236683241,0.03,149.28,149.27,570.62689709]
[1741236683448,0.03,149.34,149.28,31.68259514]
[1741236683640,0.03,149.34,149.33,17.05156352]
[1741236683819,0.03,149.34,149.33,98.35156352]
[1741236684020,0.03,149.34,149.33,81.44216157]
[1741236686853,0.03,149.34,149.3,81.3]
[1741236687146,20.03,149.34,149.3,81.3]
[1741236687353,20.03,149.34,149.31,0.14216157]
[1741236687729,20.03,149.34,149.3,81.3]
[1741236688543,20.03,149.34,149.29,0.14216157]
[1741236688753,20.0,149.33,149.28,0.14216157]
[1741236689629,0.03,149.34,149.3,0.14216157]
[1741236690751,0.03,149.34,149.31,17.05156352]
[1741236690953,0.03,149.34,149.31,98.35156352]
[1741236691365,0.03,149.34,149.33,0.14216157]
[1741236691651,0.03,149.34,149.33,81.44216157]
[1741236692335,0.03,149.34,149.33,98.35156352]
[1741236693731,0.03,149.34,149.33,410.35156352]
[1741236694638,0.03,149.34,149.33,393.44216157]
[1741236694844,0.03,149.34,149.33,81.44216157]
[1741236700165,0.03,149.34,149.33,81.3]
[1741236700344,0.03,149.34,149.33,81.44216157]
[1741236702076,0.03,149.34,149.33,215.94216157]
[1741236702241,0.03,149.34,149.33,251.50121238]
[1741236702856,0.03,149.34,149.33,563.50121238]
[1741236706081,0.03,149.34,149.33,563.92769709]
[1741236706239,0.03,149.34,149.33,570.62419709]
[1741236706441,0.03,149.35,149.34,19.21829514]
[1741236706763,0.03,149.35,149.34,37.53292043]
[1741236707472,0.03,149.37,149.36,39.21829514]
[1741236707676,0.03,149.37,149.36,292.67899447]
[1741236707840,0.03,149.38,149.37,42.67489709]
[1741236708041,0.03,149.39,149.37,42.67489709]
[1741236708350,0.03,149.39,149.38,37.53255672]
[1741236708672,0.03,149.39,149.38,36.12769709]
[1741236709669,0.03,149.39,149.38,546.59181043]
[1741236709874,0.03,149.39,149.38,552.97181043]
[1741236710077,0.03,149.39,149.38,569.88121238]
[1741236711076,0.03,149.39,149.38,570.30769709]
[1741236711245,0.03,149.39,149.38,577.00199709]
[1741236712337,7.0119,149.51,149.39,19.21829514]
[1741236712543,7.0119,149.51,149.39,276.93579021]
[1741236712742,7.0119,149.51,149.39,275.53089904]
[1741236713249,20.0,149.48,149.39,258.62149709]
[1741236713554,20.0,149.48,149.39,251.92769709]
[1741236714750,20.0,149.48,149.39,258.62149709]
[1741236715474,20.0,149.48,149.39,570.62149709]
[1741236715846,7.0119,149.51,149.39,604.26559904]
[1741236716071,80.8,149.56,149.39,604.26559904]
[1741236716072,80.8,149.56,149.49,17.05156352]